bitfinex/quotes_ETHUSD_20220103
["timestamp","ask_amount","ask_price","bid_price","bid_amount"]
[1641226706365,0.00205946,3760.7,3760.6,29.6573]
[1641226706568,0.00205946,3760.7,3760.6,31.75062135]
[1641226706967,0.00205946,3760.7,3760.6,32.41510135]
[1641226707769,5.946e-05,3760.7,3760.6,32.44546979]
[1641226707969,0.00113685,3761.0,3760.6,32.54786979]
[1641226708169,0.00113685,3761.0,3760.8,0.69972029]
[1641226708368,0.00113685,3761.0,3760.9,33.06362606]
[1641226709028,6.12,3761.5,3761.0,8.68480544]
[1641226709235,6.12,3761.5,3761.4,15.37]
[1641226709431,0.6694965,3763.0,3761.4,15.37]
[1641226709432,0.0050765,3763.0,3761.4,15.72543365]
[1641226709731,0.01080005,3762.9,3761.6,15.40142841]
[1641226709935,0.01080005,3762.9,3761.8,15.40081606]
[1641226710131,0.0050765,3763.0,3762.0,15.37]
[1641226710132,0.01023162,3762.8,3762.0,15.37]
[1641226710332,0.01023162,3762.8,3762.2,1.27901116]
[1641226710533,0.0096632,3762.7,3762.3,0.319]
[1641226710934,0.00909478,3762.6,3762.4,16.03424]
[1641226711139,0.00909478,3762.6,3762.5,0.319]
[1641226711335,0.0050765,3763.0,3762.5,0.319]
[1641226711741,0.01080005,3762.9,3762.5,0.319]
[1641226712140,0.01023162,3762.8,3762.6,3.00258487]
[1641226712539,8.0096632,3762.7,3762.6,3.00258487]
[1641226712768,8.0096632,3762.7,3762.5,2.7]
[1641226713168,0.00909478,3762.6,3762.5,2.7]
[1641226715777,0.01093228,3762.6,3762.5,2.7]
[1641226716825,0.01093228,3762.6,3762.5,3.019]
[1641226719834,0.01093228,3762.6,3762.5,2.7]
[1641226720036,8.66093228,3762.6,3762.5,2.7]
[1641226720264,8.66093228,3762.6,3761.5,3.60565507]
[1641226720668,0.66459,3762.2,3761.5,3.60565507]
[1641226721066,0.00625266,3762.1,3761.5,3.60565507]
[1641226721270,0.00625266,3762.1,3760.9,3.92465507]
[1641226721570,0.00568424,3762.0,3760.9,3.92465507]
[1641226721768,0.66458,3761.8,3761.0,0.105359]
[1641226721969,0.66458,3761.8,3761.0,1.47493645]
[1641226722172,0.00397896,3761.7,3761.1,8.0176]
[1641226722568,0.00341054,3761.6,3761.1,8.0176]
[1641226722969,0.00284212,3761.5,3761.1,8.0176]
[1641226723371,0.00227369,3761.4,3761.1,5.3176]
[1641226723772,0.00170527,3761.3,3761.1,5.3176]
[1641226724227,0.00113685,3761.2,3761.1,5.3176]
[1641226726228,0.00261117,3761.2,3761.1,5.3176]
[1641226726433,0.00261117,3761.2,3761.1,5.33089362]
[1641226728068,0.66459,3761.5,3761.1,5.33089362]
[1641226728466,0.00113684,3761.4,3761.1,5.33089362]
[1641226729769,0.00113684,3761.4,3761.3,1.80195087]
[1641226729970,0.00113684,3761.4,3761.3,7.11925087]
[1641226730370,0.00113684,3761.4,3761.3,5.3173]
[1641226730574,0.61572684,3761.5,3761.3,5.3173]
[1641226731069,0.61572684,3761.5,3761.3,8.32055146]
[1641226732121,0.61572684,3761.5,3761.4,3.00325146]
[1641226732319,1.32916,3761.6,3761.4,3.00325146]
[1641226733522,1.32916,3761.6,3761.4,3.80325146]
[1641226734727,1.32916,3761.6,3761.5,3.00325146]
[1641226735127,1.33029685,3761.6,3761.5,3.00325146]
[1641226735372,1.33029685,3761.6,3761.5,4.80520233]
[1641226736172,1.33029685,3761.6,3761.5,3.00325146]
[1641226736974,1.33164861,3761.6,3761.5,3.01654385]
[1641226738680,1.33164861,3761.6,3761.5,3.00722445]
[1641226741120,1.33164861,3761.6,3761.5,4.8080693]
[1641226742322,1.33164861,3761.6,3761.5,3.00722445]
[1641226743372,1.34753861,3761.6,3761.5,3.00722445]
[1641226744376,1.34753861,3761.6,3761.4,0.8]
[1641226744776,1.34753861,3761.6,3761.5,8.969]
[1641226744977,1.34753861,3761.6,3761.5,9.269]
[1641226745178,1.34753861,3761.6,3761.5,10.30423685]
[1641226745480,1.34753861,3761.6,3761.5,31.66943685]
[1641226745980,3.861e-05,3761.6,3761.5,31.76943685]
[1641226746182,3.861e-05,3761.6,3761.5,31.83935428]
[1641226746380,0.66457,3761.8,3761.7,15.37]
[1641226746622,0.66457,3761.8,3761.7,22.3434519]
[1641226746820,1.32876,3761.9,3761.7,6.3378319]
[1641226747021,1.32876,3761.9,3761.7,6.33673065]
[1641226747625,1.32876,3761.9,3761.7,5.6357]
[1641226747824,1.33147382,3761.9,3761.7,5.6357]
[1641226748026,1.33147382,3761.9,3761.7,0.00012]
[1641226748624,1.33147382,3761.9,3761.5,0.66457]
[1641226749024,1.33147382,3761.9,3761.6,0.00113685]
[1641226749229,1.33147382,3761.9,3761.6,1.80188419]
[1641226749828,6.35,3761.8,3761.4,0.8]
[1641226750030,6.35,3761.8,3761.4,0.0001]
[1641226750031,0.01214449,3761.7,3761.4,0.0001]
[1641226750272,8.65,3761.6,3761.4,0.0001]
[1641226750464,0.01214449,3761.7,3760.9,0.66471]
[1641226750465,7.8,3761.5,3760.9,0.66471]
[1641226750673,9.12941,3761.5,3760.8,3.60108984]
[1641226750870,1.13885388,3761.0,3760.8,3.60108984]
[1641226751263,0.66472,3761.1,3760.8,3.60108984]
[1641226751474,0.58153029,3761.1,3760.8,0.66469]
[1641226755623,0.58153029,3761.1,3760.9,0.66462]
[1641226755927,0.58153029,3761.1,3761.0,0.00341054]
[1641226756723,0.58153029,3761.1,3760.9,0.00397896]
[1641226758583,0.00261365,3761.0,3760.9,0.00397896]
[1641226759581,0.00261365,3761.0,3760.7,1.434649]
[1641226759785,1.33195365,3761.0,3760.7,1.434649]
[1641226760187,1.33195365,3761.0,3760.8,0.66469]
[1641226760589,1.33195365,3761.0,3760.7,0.105359]
[1641226761637,0.0104418,3760.9,3760.7,0.105359]
[1641226762240,1.26785881,3760.8,3760.7,0.105359]
[1641226762738,1.26785881,3760.8,3760.2,1.79408488]
[1641226762739,0.66481,3760.6,3760.2,1.79408488]
[1641226762938,8.65,3760.4,3759.7,3.60108984]
[1641226763138,8.65,3760.4,3760.3,0.00227369]
[1641226763337,6.85,3760.3,3759.7,3.60108984]
[1641226763540,7.15,3760.3,3759.7,3.60108984]
[1641226763747,1.14351741,3760.2,3759.8,0.00284212]
[1641226764138,1.14351741,3760.2,3759.7,0.00341054]
[1641226764540,8.65,3760.1,3759.1,1.3297]
[1641226764739,8.65,3760.1,3759.6,0.105359]
[1641226764939,0.00227369,3760.1,3759.7,3.00430581]
[1641226766391,0.66486,3760.0,3759.7,3.00430581]
[1641226766887,0.01158142,3759.9,3759.7,3.00430581]
[1641226769422,0.00247222,3759.8,3759.7,3.00430581]
[1641226771028,0.00247222,3759.8,3759.2,0.66767212]
[1641226771226,0.66478,3759.6,3759.3,0.66478]
[1641226771427,0.66478,3759.6,3759.3,0.6670537]
[1641226771627,0.66478,3759.6,3759.4,0.00170527]
[1641226772032,0.63473011,3759.6,3759.4,0.00170527]
[1641226772230,0.01044555,3759.5,3759.4,0.00170527]
[1641226773087,0.01044555,3759.5,3759.3,0.0022737]
[1641226774686,0.01044555,3759.5,3759.3,0.1076327]
[1641226774885,0.01044555,3759.5,3759.3,0.0876327]
[1641226775288,0.01044555,3759.5,3759.3,1.88213201]
[1641226777321,0.01044555,3759.5,3759.3,0.0876327]
[1641226777722,0.01044555,3759.5,3759.4,9.31475]
[1641226777924,0.01044555,3759.5,3759.4,9.63375]
[1641226778122,0.01158239,3759.5,3759.4,9.63375]
[1641226779330,0.01158239,3759.5,3759.4,25.00375]
[1641226780131,0.01401337,3759.5,3759.4,25.00375]
[1641226781381,0.01401337,3759.5,3759.4,28.60483984]
[1641226782980,0.01401337,3759.5,3759.4,27.94008984]
[1641226783380,0.01401337,3759.5,3759.4,19.29008984]
[1641226784031,0.01401337,3759.5,3759.4,17.4803925]
[1641226784629,0.01401337,3759.5,3759.4,1.7913925]
[1641226785128,1.31624148,3759.5,3758.8,0.17752034]
[1641226785325,0.66505,3759.2,3758.8,0.17752034]
[1641226785526,0.66505,3759.2,3758.9,0.00227369]
[1641226785726,0.66505,3759.2,3759.1,0.105359]
[1641226785926,0.66506,3759.3,3759.1,0.105359]
[1641226786328,0.66506,3759.3,3757.7,4.84325644]
[1641226786329,1.3301268,3759.3,3757.7,4.84325644]
[1641226786526,2.00802653,3759.5,3757.7,4.446]
[1641226786527,0.66511,3758.5,3757.7,4.446]
[1641226786727,0.2268,3759.1,3757.8,5.32805266]
[1641226786928,1.02487888,3758.4,3757.8,5.32805266]
[1641226787127,1.02487888,3758.4,3757.9,0.00568424]
[1641226787527,1.02487888,3758.4,3757.8,5.3218]
[1641226787787,3.55924618,3758.3,3757.8,5.3218]
[1641226787990,3.55924618,3758.3,3757.7,0.45]
[1641226787991,7.75,3758.2,3757.7,0.44942]
[1641226788188,10.67786516,3758.2,3757.7,0.44942]
[1641226788389,0.00113685,3758.1,3757.7,0.44942]
[1641226788591,8.65,3758.0,3757.0,0.0072441]
[1641226788790,0.66542,3757.6,3757.0,0.0072441]
[1641226788992,8.65,3757.4,3756.3,5.79758871]
[1641226789191,8.65,3757.4,3757.0,0.105359]
[1641226789192,1.30702666,3757.3,3757.0,0.105359]
[1641226789391,1.3081635,3757.3,3757.0,0.105359]
[1641226789591,1.6081635,3757.3,3756.9,0.105358]
[1641226789993,1.3081635,3757.3,3756.4,0.00397897]
[1641226790197,0.66549,3756.9,3756.4,0.00397897]
[1641226790392,0.66549,3756.9,3756.0,0.00625266]
[1641226790593,1.16896797,3756.2,3756.0,0.00625266]
[1641226790991,1.16896797,3756.2,3755.8,5.79758871]
[1641226790992,1.16896797,3756.2,3755.9,0.00682109]
[1641226791392,1.16896797,3756.2,3755.6,0.66554]
[1641226791655,1.16896797,3756.2,3755.7,0.00795793]
[1641226791656,1.09379197,3756.2,3755.7,0.00795793]
[1641226791851,1.09379197,3756.2,3756.0,3.00618512]
[1641226792056,0.66558,3756.3,3756.0,3.00618512]
[1641226792253,0.66558,3756.3,3756.1,0.00568424]
[1641226793254,0.66558,3756.3,3755.3,15.689]
[1641226793255,8.65,3756.6,3754.9,4.48212875]
[1641226793454,1.33127,3756.0,3755.0,1.33122]
[1641226793652,0.66567,3755.7,3755.3,0.00454739]
[1641226794255,1.0286997,3755.6,3755.4,0.66564]
[1641226794654,1.33124,3755.6,3755.5,0.00341054]
[1641226794855,0.66567,3755.7,3755.5,0.00341054]
[1641226795055,0.65988371,3755.7,3755.5,0.00341054]
[1641226795301,0.65988371,3755.7,3755.6,0.319]
[1641226795490,1.9969,3756.1,3755.6,0.319]
[1641226795491,0.66548,3756.0,3755.6,0.319]
[1641226795692,1.33293044,3756.8,3756.2,1.00758257]
[1641226795890,0.06440159,3756.4,3756.3,8.969]
[1641226796091,0.06610686,3756.4,3756.3,9.269]
[1641226796892,0.06610686,3756.4,3756.3,0.319]
[1641226797092,0.06610686,3756.4,3756.3,4.919]
[1641226797392,0.00170527,3756.4,3756.3,4.919]
[1641226797797,0.00170527,3756.4,3756.3,0.319]
[1641226797994,0.00170527,3756.4,3756.1,0.105359]
[1641226797995,1.38366256,3756.3,3756.1,1.89862701]
[1641226798394,1.38479941,3756.3,3756.1,1.89862701]
[1641226798794,0.00113685,3756.3,3756.1,1.89862701]
[1641226799033,0.00113685,3756.3,3756.1,0.105359]
[1641226800239,0.00113685,3756.3,3756.1,0.090259]
[1641226800240,0.84343685,3756.3,3756.1,0.090259]
[1641226800441,1.10428833,3756.0,3755.7,1.7955417]
[1641226800638,1.10428833,3756.0,3754.7,0.66574]
[1641226800639,8.65,3755.9,3754.7,0.66574]
[1641226800843,8.65,3755.9,3755.3,1.79318542]
[1641226801039,0.00113685,3755.9,3755.3,1.79545912]
[1641226801837,0.66577,3755.7,3755.3,1.79545912]
[1641226802037,1.52757,3755.7,3755.3,1.79545912]
[1641226802236,1.52757,3755.7,3755.3,0.0022737]
[1641226802638,1.52757,3755.7,3754.1,3.58596055]
[1641226802639,8.65,3755.6,3754.1,3.58596055]
[1641226802878,1.33176,3755.5,3754.1,3.58596055]
[1641226803083,1.33289685,3755.5,3754.1,3.58596055]
[1641226803280,1.33289685,3755.5,3754.1,3.54320465]
[1641226803281,8.65,3755.3,3754.1,3.54320465]
[1641226803481,12.72844382,3755.3,3754.1,3.54320465]
[1641226803680,1.0,3755.2,3754.2,0.00625265]
[1641226804089,0.66596,3755.0,3754.2,0.00625265]
[1641226804290,1.11059715,3754.3,3754.1,0.105359]
[1641226804888,1.33192,3754.9,3754.1,0.105359]
[1641226805288,0.66585,3754.8,3754.1,0.771199]
[1641226805988,1.00652753,3754.3,3754.1,0.105359]
[1641226808349,1.78832753,3754.3,3754.1,0.105359]
[1641226810608,1.78832753,3754.3,3753.9,1.51573499]
[1641226810806,0.66599,3754.2,3753.9,1.51573499]
[1641226811012,9.31599,3754.2,3753.9,0.0073895]
[1641226811607,2.93250152,3754.1,3753.9,0.0073895]
[1641226811811,8.65,3754.0,3753.4,3.6220802]
[1641226812010,0.6661,3753.8,3753.4,0.01204623]
[1641226812209,1.15097781,3753.7,3753.5,0.00284212]
[1641226814438,1.15097781,3753.7,3753.5,2.34546027]
[1641226814838,1.15097781,3753.7,3753.6,0.0022737]
[1641226815238,8.45,3753.6,3753.5,1.03815265]
[1641226815841,2.19637781,3753.7,3753.5,0.105359]
[1641226818594,2.19637781,3753.7,3753.5,0.055359]
[1641226820394,2.16628053,3753.7,3753.5,0.055359]
[1641226820594,2.83250053,3753.7,3753.5,0.055359]
[1641226820998,2.16628053,3753.7,3753.5,0.055359]
[1641226821198,8.65,3753.6,3753.4,0.0072435]
[1641226821399,2.83248053,3753.7,3753.4,0.0072435]
[1641226821633,2.83248053,3753.7,3751.3,1.33236]
[1641226821634,0.98001075,3751.7,3751.3,1.33236]
[1641226821838,0.98001075,3751.7,3751.0,0.0911]
[1641226821839,1.06897034,3751.5,3751.0,0.03]
[1641226822041,1.06897034,3751.5,3751.1,5.3316]
[1641226822042,1.0454,3751.4,3751.1,5.3316]
[1641226822233,2.39522449,3751.4,3751.1,5.3316]
[1641226822435,2.39522449,3751.4,3751.2,0.01364216]
[1641226822635,1.0454,3751.4,3751.1,5.19524216]
[1641226823034,3.00435174,3752.8,3751.1,5.19524216]
[1641226823442,0.00852635,3752.7,3751.1,5.19524216]
[1641226823635,0.66631,3752.5,3751.6,1.13705]
[1641226824036,0.00682108,3752.4,3751.1,5.86158216]
[1641226824438,0.00625266,3752.3,3751.1,5.86158216]
[1641226824841,0.00568424,3752.2,3751.1,5.86158216]
[1641226825039,0.00568424,3752.2,3751.1,6.37230016]
[1641226825285,0.66627,3752.6,3751.1,6.37230016]
[1641226825286,0.00511581,3752.1,3751.1,7.03855016]
[1641226825487,0.00511581,3752.1,3751.3,0.6663]
[1641226825693,0.13819997,3753.1,3751.1,5.40596016]
[1641226825694,0.00454739,3752.0,3751.4,3.00435174]
[1641226825990,0.01259565,3753.7,3751.1,5.7590895]
[1641226825991,0.0137083,3754.3,3751.6,8.65]
[1641226826191,0.0137083,3754.3,3751.7,3.36246999]
[1641226826393,0.00568423,3753.0,3751.7,9.54838742]
[1641226826692,0.0137083,3754.3,3752.8,1.20074602]
[1641226826693,0.00511581,3752.9,3752.8,1.20074602]
[1641226826890,0.00511581,3752.9,3752.6,0.6659793]
[1641226826891,0.0170178,3752.9,3752.6,0.6659793]
[1641226827093,0.0170178,3752.9,3752.7,5.50498074]
[1641226827290,0.00454739,3752.8,3752.7,5.80498074]
[1641226827690,0.00454739,3752.8,3752.7,7.11663]
[1641226827890,0.00454739,3752.8,3752.7,6.88238538]
[1641226829750,0.00454739,3752.8,3752.7,5.4658]
[1641226830746,0.00454739,3752.8,3752.7,6.68845681]
[1641226830946,0.00454739,3752.8,3752.7,8.4939421]
[1641226831346,0.00454739,3752.8,3752.7,7.27128529]
[1641226831549,0.00454739,3752.8,3752.7,5.4658]
[1641226832547,0.00619278,3752.8,3752.7,5.4658]
[1641226832781,0.00619278,3752.8,3752.7,6.62867236]
[1641226833781,0.00619278,3752.8,3752.7,5.4658]
[1641226835488,2.1885,3752.7,3752.3,3.61003397]
[1641226835688,8.65,3752.5,3751.7,4.48212875]
[1641226835890,0.01226321,3752.2,3752.1,3.61103962]
[1641226836088,9.32875321,3752.2,3752.1,3.51233962]
[1641226836291,8.3,3752.1,3751.6,4.48212875]
[1641226836546,12.83423128,3752.1,3751.6,4.48212875]
[1641226836744,0.66647,3752.0,3751.7,0.00170527]
[1641226837144,0.6665144,3751.9,3751.0,0.03]
[1641226837345,0.66765125,3751.9,3751.6,0.105359]
[1641226837547,1.33305,3751.7,3751.6,0.105359]
[1641226837746,1.48715,3751.7,3751.6,0.105359]
[1641226838148,10.2465838,3751.7,3751.6,0.105359]
[1641226838955,7.5,3751.6,3750.5,7.70624382]
[1641226839151,0.66654,3751.2,3750.5,7.70624382]
[1641226839352,0.66654,3751.2,3750.6,0.00341054]
[1641226840152,0.66654,3751.2,3750.5,7.91696082]
[1641226840153,0.66654,3751.2,3750.5,0.105358]
[1641226840381,0.01552077,3751.1,3750.5,1.12134165]
[1641226840583,0.01552077,3751.1,3750.5,1.02134165]
[1641226840786,0.00227369,3751.0,3750.5,1.02134165]
[1641226841084,0.66654,3751.2,3750.5,1.02134165]
[1641226841085,0.66826527,3750.9,3750.5,0.005358]
[1641226841483,0.00113685,3750.8,3750.5,0.005358]
[1641226842485,0.00113685,3750.8,3749.4,1.1274027]
[1641226842486,1.75007151,3749.5,3749.4,1.1274027]
[1641226842684,1.75007151,3749.5,3748.2,10.33043009]
[1641226842685,9.05256206,3748.9,3748.2,8.99728009]
[1641226842885,9.05256206,3748.9,3747.2,4.09170713]
[1641226842886,6.5127578,3748.3,3747.2,4.09170713]
[1641226843084,3.30490162,3748.2,3747.3,1.0]
[1641226843282,3.30490162,3748.2,3747.3,1.01875797]
[1641226843484,0.01240215,3747.4,3747.3,1.01875797]
[1641226844141,0.01240215,3747.4,3747.3,0.01875797]
[1641226844343,0.3482,3747.5,3747.0,0.98807675]
[1641226844541,0.1834,3747.5,3747.0,0.98807675]
[1641226844748,0.00253887,3748.3,3747.1,0.00113685]
[1641226844941,0.01254856,3747.9,3747.0,1.176931]
[1641226845141,0.00625266,3748.2,3747.0,1.176931]
[1641226845344,0.00397896,3747.8,3747.0,0.876931]
[1641226845544,0.00568423,3748.1,3747.0,0.876931]
[1641226845744,0.00341054,3747.7,3746.9,0.00352708]
[1641226845943,0.00253887,3748.3,3746.9,0.00352708]
[1641226845944,0.00511581,3748.0,3746.9,0.00352708]
[1641226846142,0.00284212,3747.6,3746.9,0.00352708]
[1641226846343,0.00454739,3747.9,3746.9,0.10888608]
[1641226846542,0.40256206,3748.9,3747.0,8.6]
[1641226846744,0.40256206,3748.9,3747.0,8.60682108]
[1641226846943,0.00113684,3748.4,3747.1,1.22936759]
[1641226847142,0.00113684,3748.4,3747.2,5.6555]
[1641226847348,0.00113684,3748.4,3747.9,1.333453]
[1641226847784,0.00113684,3748.4,3748.0,0.00113685]
[1641226848186,2.98590162,3748.8,3748.5,1.35143523]
[1641226848387,0.40256206,3748.9,3747.2,5.3365]
[1641226848587,0.00341055,3748.8,3747.8,0.66686]
[1641226848785,0.00454739,3748.8,3747.6,0.319]
[1641226848987,0.00397896,3748.7,3747.7,0.319]
[1641226849193,0.00397896,3748.7,3747.8,0.319]
[1641226849391,0.00341054,3748.6,3747.8,0.32013685]
[1641226849595,0.00341054,3748.6,3748.0,1.0]
[1641226849792,0.00284212,3748.5,3748.1,1.63181844]
[1641226849996,0.00284212,3748.5,3748.2,0.66671]
[1641226850195,0.40256206,3748.9,3748.2,1.33339]
[1641226850196,0.00227369,3748.4,3748.2,1.33339]
[1641226850392,0.00227369,3748.4,3748.1,1.31281844]
[1641226850393,0.00227369,3748.4,3748.1,1.26281844]
[1641226850592,0.00170527,3748.3,3748.1,1.26281844]
[1641226850993,0.00113685,3748.2,3748.1,1.26281844]
[1641226852056,0.00113685,3748.2,3747.5,0.00284212]
[1641226853058,0.01306367,3748.2,3747.5,0.00284212]
[1641226853358,0.01306367,3748.2,3747.6,0.98591]
[1641226853758,0.01306367,3748.2,3747.7,0.00170527]
[1641226853966,0.01306367,3748.2,3747.8,1.09728955]
[1641226854167,0.01306367,3748.2,3747.8,2.43089955]
[1641226854367,1.01252227,3749.3,3748.0,16.03673]
[1641226854568,1.01252227,3749.3,3748.1,0.319]
[1641226854769,0.00341054,3748.8,3748.2,8.65]
[1641226854968,0.00341054,3748.8,3748.3,0.319]
[1641226855175,2.98590162,3749.2,3748.4,1.33540013]
[1641226855176,0.00284211,3748.7,3748.4,1.33540013]
[1641226855601,1.01252227,3749.3,3748.5,9.67420599]
[1641226855803,1.01252227,3749.3,3748.6,6.3708328]
[1641226856002,0.00341054,3749.2,3748.7,0.319]
[1641226856203,0.00341054,3749.2,3748.8,6.3327]
[1641226856405,2.98590162,3750.4,3748.9,7.5]
[1641226856606,2.98590162,3750.4,3749.8,1.24392068]
[1641226856805,0.00170527,3749.4,3749.2,0.66664]
[1641226857006,0.00170527,3749.4,3749.3,0.3]
[1641226857205,2.98590162,3750.4,3749.3,0.3]
[1641226857405,5.76258218,3750.5,3749.2,0.66664]
[1641226857606,0.00682108,3750.3,3749.2,0.66664]
[1641226857810,0.00682108,3750.3,3748.9,0.00113685]
[1641226857813,0.00682108,3750.3,3749.1,1.1775439]
[1641226858005,0.25252966,3750.4,3749.1,1.1775439]
[1641226858205,0.25252966,3750.4,3749.2,0.00568424]
[1641226858405,0.01047281,3750.2,3749.2,0.00568424]
[1641226859269,0.01047281,3750.2,3749.7,1.27346499]
[1641226859671,0.01047281,3750.2,3749.8,0.0022737]
[1641226861074,0.01047281,3750.2,3748.9,0.00738951]
[1641226861276,0.11264434,3750.4,3748.9,0.00738951]
[1641226861676,0.6667772,3750.3,3748.9,0.00738951]
[1641226861874,0.6668,3749.8,3748.9,0.00738951]
[1641226862075,2.76581936,3749.7,3748.9,0.00738951]
[1641226862275,2.7980603,3750.0,3748.9,0.00738951]
[1641226862474,0.21504434,3750.4,3748.9,0.00738951]
[1641226862475,3.25269172,3750.4,3748.9,0.00738951]
[1641226862677,0.6667843,3750.3,3748.9,0.00738951]
[1641226862899,0.66679,3749.8,3748.9,0.00738951]
[1641226863500,0.13024434,3750.4,3748.9,0.00738951]
[1641226863501,0.03157156,3750.4,3748.9,0.00738951]
[1641226863699,0.01873684,3750.4,3749.0,1.63739205]
[1641226864105,0.01873684,3750.4,3749.1,0.00625266]
[1641226864106,0.01047378,3749.7,3749.1,0.00625266]
[1641226864305,0.01047378,3749.7,3749.2,0.319]
[1641226864505,0.01047378,3749.7,3749.4,0.66656]
[1641226864709,0.01047378,3749.7,3749.5,0.319]
[1641226864904,0.01047378,3749.7,3749.6,1.13227606]
[1641226865106,0.01047378,3749.7,3749.6,1.4546866]
[1641226866106,0.01269162,3749.7,3749.6,1.4546866]
[1641226867347,0.01269162,3749.7,3749.6,4.1541876]
[1641226868250,0.01269162,3749.7,3749.6,0.9541876]
[1641226869553,0.01269162,3749.7,3749.6,4.2041876]
[1641226871207,0.01269162,3749.7,3749.6,0.9541876]
[1641226873014,0.01269162,3749.7,3749.6,0.9041876]
[1641226873423,0.01269162,3749.7,3749.6,0.5851876]
[1641226875353,5.76258218,3750.5,3749.6,0.5851876]
[1641226875354,0.54801902,3750.5,3749.8,8.65]
[1641226875552,1.50176203,3751.0,3750.0,24.68639]
[1641226875752,1.50176203,3751.0,3750.1,0.319]
[1641226875957,0.0022737,3750.8,3750.1,0.32070527]
[1641226876154,0.0022737,3750.8,3750.2,1.04407858]
[1641226876352,0.00170527,3750.7,3750.5,0.66637]
[1641226876554,5.27e-06,3750.7,3750.6,8.469]
[1641226876753,1.50176203,3751.0,3750.6,8.469]
[1641226876953,0.00207797,3750.7,3750.6,8.469]
[1641226877355,3.01068461,3751.2,3750.9,0.66628]
[1641226877555,3.01068461,3751.2,3751.0,0.319]
[1641226877822,3.01238988,3751.2,3751.0,0.319]
[1641226878223,0.00170527,3751.2,3751.0,0.319]
[1641226878829,2.91238988,3751.3,3751.1,6.9]
[1641226879029,6.22e-05,3751.4,3751.2,9.63523]
[1641226879428,3.71230787,3752.8,3751.3,0.03134479]
[1641226879629,3.71230787,3752.8,3751.3,30.68054479]
[1641226879630,2.37987787,3752.8,3751.3,30.68054479]
[1641226879830,0.0022737,3751.6,3751.4,0.319]
[1641226880028,2.37987787,3752.8,3751.5,22.7171512]
[1641226880233,2.37987787,3752.8,3752.1,0.666]
[1641226880431,0.00625265,3752.7,3752.2,0.319]
[1641226880633,0.00625265,3752.7,3752.3,1.3319427]
[1641226880834,0.00568423,3752.6,3752.4,0.319]
[1641226881034,8.423e-05,3752.6,3752.5,9.95611591]
[1641226881235,3.16205551,3753.5,3752.5,25.64511591]
[1641226881433,5.28578077,3754.7,3753.0,8.65]
[1641226881672,9.477e-05,3753.2,3753.1,15.689]
[1641226881869,2.42624293,3754.2,3753.2,8.65]
[1641226882069,2.42624293,3754.2,3753.3,6.97743593]
[1641226882268,0.00511581,3754.1,3753.4,1.16196035]
[1641226882471,0.00511581,3754.1,3753.6,15.37]
[1641226882670,3.389527,3754.9,3753.6,15.37]
[1641226882671,0.00454739,3754.0,3753.7,7.3105]
[1641226882872,0.00454739,3754.0,3753.8,15.40101738]
[1641226883071,0.00397896,3753.9,3753.8,15.40101738]
[1641226883472,0.00397896,3753.9,3753.8,20.72891738]
[1641226883671,7.896e-05,3753.9,3753.8,20.72891738]
[1641226883874,6.12,3755.0,3753.8,20.72891738]
[1641226883875,6.12,3755.0,3753.9,8.65]
[1641226884171,6.07,3755.0,3754.9,1.34873328]
[1641226884371,6.07,3755.0,3754.9,1.66773328]
[1641226884572,6.07625266,3755.0,3754.9,1.66773328]
[1641226885170,6.07625266,3755.0,3754.9,0.319]
[1641226885406,5.97625266,3755.0,3754.0,5.3277]
[1641226885609,0.66583,3754.8,3754.0,5.3277]
[1641226885807,5.97625266,3755.0,3754.0,5.3277]
[1641226885808,0.00568424,3754.9,3754.1,0.319]
[1641226886009,0.00454739,3754.7,3754.1,0.319]
[1641226886208,0.00511582,3754.8,3754.1,0.319]
[1641226886411,0.00397897,3754.6,3754.1,0.319]
[1641226886609,5.97,3755.0,3754.1,0.319]
[1641226886610,0.00454739,3754.7,3754.1,0.319]
[1641226886810,0.00341055,3754.5,3754.1,0.319]
[1641226887011,0.00397897,3754.6,3754.2,1.33997425]
[1641226887210,5.97,3755.0,3754.2,1.33997425]
[1641226887211,0.00284212,3754.4,3754.2,1.33997425]
[1641226887510,5.97,3755.0,3754.2,1.33997425]
[1641226887812,0.00341054,3754.9,3754.2,1.33997425]
[1641226888010,1.33162,3754.8,3754.2,1.33997425]
[1641226888212,0.00204456,3754.4,3754.2,1.33997425]
[1641226890657,0.00204456,3754.4,3754.2,2.00563425]
[1641226891058,0.00204456,3754.4,3754.3,8.969]
[1641226891258,0.00204456,3754.4,3754.3,14.2962]
[1641226891663,0.00204456,3754.4,3754.3,5.6462]
[1641226893815,0.66566,3755.0,3754.3,5.64847369]
[1641226893816,0.51997825,3755.0,3754.3,5.64847369]
[1641226894016,0.21300247,3756.4,3754.4,0.02387027]
[1641226894218,0.00113685,3754.9,3754.5,0.319]
[1641226894418,0.00113685,3754.9,3754.6,1.33106]
[1641226894617,0.00113685,3754.9,3754.7,0.319]
[1641226894821,0.00113685,3754.9,3754.8,8.47323556]
[1641226895017,0.00113685,3754.9,3754.8,8.79223556]
[1641226895216,0.00113685,3754.9,3754.8,1.34223556]
[1641226896653,0.00113685,3754.9,3754.8,6.66873556]
[1641226897357,0.00113685,3754.9,3754.8,5.3265]
[1641226898855,8.65,3754.8,3754.5,3.684e-05]
[1641226899056,8.65,3754.5,3752.2,0.5]
[1641226899260,8.65,3754.5,3751.9,11.4573]
[1641226899261,0.01228674,3753.5,3751.9,11.4573]
[1641226899659,0.01228674,3753.5,3752.1,1.03152932]
[1641226899865,0.6661652,3753.4,3752.1,1.03152932]
[1641226900062,0.6661652,3753.4,3752.2,0.01307374]
[1641226900309,0.66615,3753.0,3752.2,0.01307374]
[1641226900516,2.81149022,3752.9,3752.2,0.01307374]
[1641226900707,3.14854539,3753.3,3751.9,0.01477901]
[1641226901108,0.6662199,3753.2,3751.9,0.01477901]
[1641226901308,2.86807477,3753.1,3751.9,0.01477901]
[1641226901510,0.6662199,3753.2,3751.9,0.01477901]
[1641226901806,2.85178112,3753.1,3751.9,0.01477901]
[1641226902206,4.4971277,3753.4,3751.9,0.01477901]
[1641226902207,0.6662674,3752.9,3751.9,0.01477901]
[1641226902409,0.66621,3752.8,3751.9,0.01477901]
[1641226902609,1.9986874,3752.9,3751.9,0.01477901]
[1641226902610,0.6662674,3752.9,3751.9,0.01477901]
[1641226903010,1.93057398,3752.7,3752.0,0.90153238]
[1641226903509,1.33247,3752.5,3752.1,0.01364217]
[1641226903711,2.88684846,3752.4,3752.1,0.01364217]